bitfinex-derivatives/quotes_SOLF0:USTF0_20260305
["timestamp","ask_amount","ask_price","bid_price","bid_amount"]
[1772722244660,15.70705609,90.339,90.261,18.13024467]
[1772722244859,9.27811678,90.37,90.281,18.13024467]
[1772722245156,15.72647441,90.375,90.307,9.964]
[1772722245559,9.27811678,90.39,90.308,18.13024467]
[1772722245859,9.27811678,90.37,90.308,18.13024467]
[1772722246357,9.957,90.368,90.308,18.13024467]
[1772722246957,25.64565276,90.358,90.281,18.13024467]
[1772722247155,9.27811678,90.35,90.281,18.13024467]
[1772722247352,9.27811678,90.37,90.281,18.13024467]
[1772722247754,15.68765276,90.383,90.281,18.13024467]
[1772722248253,9.27811678,90.37,90.281,18.13024467]
[1772722248455,15.68765276,90.383,90.281,18.13024467]
[1772722248660,15.68765276,90.383,90.301,18.13024467]
[1772722248858,9.956,90.382,90.318,9.963]
[1772722249057,9.956,90.382,90.301,18.13024467]
[1772722249058,15.68765276,90.383,90.301,18.13024467]
[1772722249455,15.68765276,90.383,90.306,18.79709173]
[1772722249960,25.05527186,90.41,90.321,18.79709173]
[1772722250156,15.77888539,90.409,90.321,18.79709173]
[1772722250354,9.954,90.399,90.33,9.961]
[1772722250563,15.79503861,90.389,90.3,9.27811678]
[1772722250758,15.79503861,90.389,90.301,18.79709173]
[1772722250958,9.954,90.401,90.327,18.79709173]
[1772722251165,9.27811678,90.41,90.296,18.79709173]
[1772722251166,9.27811678,90.38,90.296,18.79709173]
[1772722251369,15.79209574,90.407,90.311,18.79709173]
[1772722252165,9.951,90.426,90.357,9.958]
[1772722252358,15.80975226,90.429,90.346,18.79709173]
[1772722252562,25.10365333,90.41,90.31,9.27811678]
[1772722252764,15.82553655,90.409,90.311,18.79709173]
[1772722252969,15.82553655,90.389,90.311,18.79709173]
[1772722253469,15.52892701,90.369,90.285,18.79709173]
[1772722253662,9.27811678,90.35,90.285,18.79709173]
[1772722254765,15.54587253,90.349,90.251,18.79709173]
[1772722255179,9.27811678,90.37,90.271,18.79709173]
[1772722255677,9.27811678,90.37,90.302,18.79709173]
[1772722256079,9.27811678,90.37,90.31,9.964]
[1772722256278,9.956,90.377,90.302,18.79709173]
[1772722256479,9.27811678,90.39,90.302,18.79709173]
[1772722256881,15.60739305,90.389,90.302,18.79709173]
[1772722257385,9.956,90.382,90.324,9.962]
[1772722257682,15.60739305,90.389,90.302,18.79709173]
[1772722258186,24.88229269,90.39,90.302,18.79709173]
[1772722258388,24.89701995,90.37,90.302,18.79709173]
[1772722258587,9.957,90.369,90.302,18.79709173]
[1772722258885,9.27811678,90.42,90.302,18.79709173]
[1772722258886,15.61890317,90.389,90.302,18.79709173]
[1772722259083,9.27811678,90.37,90.302,18.79709173]
[1772722259286,24.90108403,90.37,90.302,18.79709173]
[1772722260082,9.958,90.362,90.302,18.79709173]
[1772722260290,15.63894892,90.369,90.271,18.79709173]
[1772722260486,15.63894892,90.369,90.227,155.139]
[1772722260487,9.23357731,90.41,90.311,18.79709173]
[1772722260985,15.65333981,90.416,90.353,9.959]
[1772722261190,15.65333981,90.416,90.34,18.79709173]
[1772722261591,9.953,90.406,90.344,9.96]
[1772722261789,9.23357731,90.41,90.34,18.79709173]
[1772722262589,9.23357731,90.41,90.31,9.23357731]
[1772722262590,15.6843008,90.409,90.311,18.79709173]
[1772722262888,24.91787811,90.39,90.311,18.79709173]
[1772722263083,15.70422586,90.389,90.311,18.79709173]
[1772722263484,9.958,90.366,90.311,18.79709173]
[1772722263685,24.95170385,90.37,90.271,18.79709173]
[1772722263887,9.23357731,90.35,90.271,18.79709173]
[1772722264185,9.23357731,90.39,90.291,18.79709173]
[1772722264383,8.59251406,90.393,90.291,18.79709173]
[1772722264686,15.73323354,90.42,90.316,18.79709173]
[1772722264888,8.5942324,90.419,90.331,18.79709173]
[1772722265087,9.953,90.403,90.342,9.96]
[1772722265482,8.60202781,90.419,90.331,18.79709173]
[1772722265483,15.72921557,90.418,90.331,18.79709173]
[1772722265785,154.751,90.455,90.331,18.79709173]
[1772722265786,9.954,90.394,90.331,18.79709173]
[1772722266083,15.73054363,90.389,90.302,18.79709173]
[1772722266278,9.957,90.371,90.319,9.963]
[1772722266483,9.23357731,90.41,90.311,18.79709173]
[1772722266787,8.6103155,90.414,90.331,18.79709173]
[1772722266982,8.6103155,90.413,90.331,18.79709173]
[1772722267178,8.6103155,90.412,90.331,18.79709173]
[1772722267379,8.6103155,90.411,90.331,18.79709173]
[1772722267690,9.43890825,90.427,90.331,18.79709173]
[1772722267691,15.47057264,90.425,90.331,18.79709173]
[1772722267882,9.23357731,90.41,90.331,18.79709173]
[1772722268083,8.61574243,90.422,90.341,18.79709173]
[1772722268283,8.61574243,90.421,90.341,18.79709173]
[1772722268484,15.4717706,90.424,90.341,18.79709173]
[1772722268485,8.61574243,90.42,90.341,18.79709173]
[1772722268679,15.48489109,90.409,90.32,18.79709173]
[1772722268888,8.61574243,90.408,90.32,18.79709173]
[1772722269183,8.61574243,90.407,90.32,18.79709173]
[1772722269383,9.88669485,90.419,90.34,18.79709173]
[1772722269589,8.63747295,90.418,90.34,18.79709173]
[1772722269789,8.63747295,90.417,90.34,18.79709173]
[1772722269991,9.952,90.418,90.361,9.958]
[1772722270285,9.46786505,90.429,90.361,9.958]
[1772722270489,18.09968774,90.428,90.361,9.958]
[1772722270689,9.952,90.416,90.352,9.959]
[1772722270990,9.952,90.416,90.34,18.79709173]
[1772722271284,8.63242326,90.415,90.34,18.79709173]
[1772722271489,8.63242326,90.414,90.34,18.79709173]
[1772722271690,9.88669485,90.446,90.351,18.79709173]
[1772722271990,15.53213122,90.439,90.351,18.79709173]
[1772722272188,15.53213122,90.429,90.351,18.79709173]
[1772722272492,18.1130251,90.428,90.351,18.79709173]
[1772722272683,18.1130251,90.427,90.351,18.79709173]
[1772722272985,10.14650589,90.475,90.371,18.79709173]
[1772722273190,1.92462441,90.48,90.371,18.79709173]
[1772722273191,8.63821458,90.457,90.371,18.79709173]
[1772722273391,8.63821458,90.456,90.397,9.954]
[1772722273691,21.30470761,90.48,90.37,9.23357731]
[1772722273692,9.23357731,90.48,90.393,18.79709173]
[1772722273895,9.947,90.46,90.393,28.75109173]
[1772722274095,8.63109384,90.457,90.393,18.79709173]
[1772722274292,8.63109384,90.456,90.393,18.79709173]
[1772722274495,9.949,90.442,90.393,18.79709173]
[1772722274684,9.949,90.442,90.37,18.79709173]
[1772722274994,8.63109384,90.454,90.37,18.79709173]
[1772722274995,8.63109384,90.441,90.37,18.79709173]
[1772722275189,9.949,90.44,90.37,28.75409173]
[1772722275592,9.951,90.422,90.349,9.959]
[1772722275789,15.40518509,90.438,90.341,18.79709173]
[1772722276095,15.40622203,90.459,90.361,18.79709173]
[1772722276292,15.40622203,90.456,90.361,18.79709173]
[1772722276495,0.0006559,90.458,90.401,18.79709173]
[1772722277191,0.0006559,90.458,90.424,18.79709173]
[1772722277387,8.61514111,90.519,90.424,18.79709173]
[1772722277586,15.42192516,90.527,90.441,18.79709173]
[1772722277790,15.43375001,90.552,90.464,18.79709173]
[1772722277988,15.43375001,90.552,90.416,154.815]
[1772722277989,15.4347641,90.617,90.503,18.79709173]
[1772722278193,17.96852001,90.599,90.51,9.23357731]
[1772722278390,17.96852001,90.597,90.515,9.941]
[1772722278693,17.96852001,90.597,90.458,154.743]
[1772722278694,27.20209732,90.65,90.551,18.79709173]
[1772722278998,27.20209732,90.65,90.526,154.628]
[1772722278999,9.23357731,90.67,90.581,18.45584095]
[1772722279190,1.9205775,90.68,90.591,18.45584095]
[1772722279395,15.19678839,90.684,90.611,18.45584095]
[1772722279590,15.19678839,90.684,90.631,18.45584095]
[1772722279999,15.19678839,90.684,90.54,9.23357731]
[1772722280000,15.19678839,90.684,90.605,18.45584095]
[1772722280192,9.23357731,90.68,90.605,18.45584095]
[1772722280587,18.03323281,90.683,90.56,62.0]
[1772722280588,0.00078839,90.684,90.65,9.23357731]
[1772722280787,0.00078839,90.684,90.651,18.45584095]
[1772722281796,0.00078839,90.684,90.625,18.45584095]
[1772722282100,0.00078839,90.684,90.651,18.45584095]
[1772722282391,18.03323281,90.765,90.671,18.45584095]
[1772722282590,9.23357731,90.75,90.671,18.45584095]
[1772722282792,18.03323281,90.749,90.65,9.23357731]
[1772722282989,27.26681012,90.73,90.645,18.45584095]
[1772722283591,27.95123281,90.73,90.645,18.45584095]
[1772722283787,154.159,90.802,90.61,9.23357731]
[1772722283788,18.03323281,90.778,90.671,18.45584095]
[1772722284192,18.03323281,90.778,90.678,18.45584095]
[1772722284391,9.23357731,90.76,90.678,18.45584095]
[1772722284996,9.912,90.777,90.678,18.45584095]
[1772722285201,18.03323281,90.778,90.682,18.45584095]
[1772722285397,18.03323281,90.789,90.691,18.45584095]
[1772722285594,18.03323281,90.77,90.666,18.45584095]
[1772722285790,1.91825373,90.771,90.681,18.45584095]
[1772722285990,18.03323281,90.776,90.681,18.45584095]
[1772722286392,9.23357731,90.76,90.681,18.45584095]
[1772722286699,18.50769925,90.787,90.671,18.28986569]
[1772722287001,9.23357731,90.77,90.696,18.28986569]
[1772722287206,9.23357731,90.75,90.67,18.28986569]
[1772722287403,9.916,90.748,90.67,18.28986569]
[1772722287601,9.23357731,90.73,90.631,18.28986569]
[1772722287995,9.918,90.729,90.631,18.28986569]
[1772722288301,9.23357731,90.69,90.631,18.28986569]
[1772722288500,9.23357731,90.69,90.609,18.28986569]
[1772722289596,27.74127656,90.72,90.612,18.28986569]
[1772722289902,9.23357731,90.76,90.651,18.28986569]
[1772722290408,154.149,90.808,90.656,18.28986569]
[1772722290409,9.23357731,90.74,90.656,18.28986569]
[1772722291004,18.50769925,90.759,90.656,18.28986569]
[1772722291005,9.23357731,90.72,90.656,18.28986569]
[1772722291204,9.23357731,90.72,90.621,18.28986569]
[1772722291404,9.919,90.714,90.621,18.28986569]
[1772722291606,9.23357731,90.73,90.621,18.28986569]
[1772722292006,9.23357731,90.73,90.638,18.28986569]
[1772722292007,9.918,90.729,90.638,18.28986569]
[1772722292911,9.23357731,90.71,90.638,18.28986569]
[1772722293503,9.23357731,90.73,90.641,18.28986569]
[1772722293905,27.74127656,90.73,90.641,28.21686569]
[1772722294211,9.23357731,90.71,90.617,18.28986569]
[1772722295006,9.23357731,90.71,90.571,154.55]
[1772722295007,9.23357731,90.71,90.631,18.28986569]
[1772722295210,9.23357731,90.73,90.641,18.28986569]
[1772722295609,9.23357731,90.75,90.664,9.925]
[1772722295807,18.50769925,90.781,90.664,18.28986569]
[1772722296009,9.23357731,90.77,90.664,18.28986569]
[1772722296211,9.23357731,90.73,90.664,18.28986569]
[1772722296712,9.23357731,90.73,90.598,154.505]
[1772722296713,9.23357731,90.73,90.621,18.28986569]
[1772722297314,9.23357731,90.73,90.653,9.926]
[1772722297613,9.918,90.727,90.65,18.28986569]
[1772722297807,9.23357731,90.73,90.663,9.925]
[1772722298114,9.23357731,90.73,90.65,18.28986569]
[1772722298506,9.23357731,90.73,90.65,28.21586569]
[1772722298715,18.50769925,90.709,90.625,18.28986569]
[1772722299012,9.23357731,90.7,90.625,18.28986569]
[1772722299212,9.23357731,90.72,90.625,18.28986569]
[1772722299406,9.23357731,90.7,90.625,18.28986569]
[1772722299606,9.23357731,90.74,90.661,18.28986569]
[1772722299908,18.50769925,90.739,90.661,18.28986569]
[1772722300102,9.23357731,90.72,90.661,18.28986569]
[1772722300509,9.23357731,90.72,90.621,18.28986569]
[1772722300807,9.23357731,90.7,90.621,18.28986569]
[1772722301203,18.50769925,90.718,90.658,9.925]
[1772722301408,9.23357731,90.72,90.658,9.925]
[1772722301605,9.23357731,90.72,90.644,18.28986569]
[1772722302217,9.23357731,90.74,90.644,18.28986569]
[1772722302416,9.23357731,90.76,90.651,18.28986569]
[1772722302613,9.914,90.759,90.651,18.28986569]
[1772722302813,9.23357731,90.76,90.684,18.28986569]
[1772722303111,18.50769925,90.794,90.684,18.28986569]
[1772722303319,18.50769925,90.794,90.69,9.23357731]
[1772722303619,18.50769925,90.769,90.691,18.28986569]
[1772722304114,9.23357731,90.79,90.691,18.28986569]
[1772722304315,18.50769925,90.789,90.691,18.28986569]
[1772722304718,18.50769925,90.789,90.662,154.396]
[1772722304719,18.50769925,90.789,90.701,18.28986569]
[1772722304913,18.50769925,90.789,90.723,9.918]
[1772722305218,18.50769925,90.789,90.662,154.396]
[1772722305219,9.23357731,90.77,90.691,18.28986569]
[1772722305420,9.23357731,90.77,90.699,9.921]
[1772722305620,9.23357731,90.78,90.691,18.28986569]
[1772722306215,9.912,90.778,90.711,9.92]
[1772722306410,18.50769925,90.811,90.691,18.28986569]
[1772722306615,18.50769925,90.799,90.691,18.28986569]
[1772722306816,9.23357731,90.78,90.691,18.28986569]
[1772722307213,9.908,90.815,90.73,18.28986569]
[1772722307418,18.50769925,90.826,90.73,18.28986569]
[1772722308027,9.23357731,90.83,90.741,18.28986569]
[1772722308622,9.23357731,90.81,90.741,18.28986569]
[1772722308817,9.23357731,90.81,90.673,154.376]
[1772722308818,9.23357731,90.79,90.715,18.28986569]
[1772722309216,9.23357731,90.84,90.731,18.73673735]
[1772722309421,18.68797469,90.839,90.731,18.73673735]
[1772722309616,9.907,90.829,90.731,18.73673735]
[1772722310215,9.23357731,90.84,90.755,18.73673735]
[1772722310416,18.68797469,90.865,90.771,18.73673735]
[1772722310919,153.945,90.928,90.79,27.97031466]
[1772722310920,18.68797469,90.89,90.79,27.97031466]
[1772722311122,18.68797469,90.869,90.79,18.73673735]
[1772722311530,9.903,90.866,90.793,9.911]
[1772722311731,9.23357731,90.85,90.761,18.73673735]
[1772722311936,9.905,90.846,90.767,9.913]
[1772722312125,9.905,90.846,90.761,18.73673735]
[1772722312333,9.23357731,90.87,90.771,18.73673735]
[1772722312526,9.23357731,90.87,90.808,9.909]
[1772722312827,18.68797469,90.869,90.771,18.73673735]
[1772722313424,18.68797469,90.896,90.791,18.73673735]
[1772722313629,9.23357731,90.88,90.791,18.73673735]
[1772722313827,9.23357731,90.88,90.81,9.909]
[1772722314130,18.68797469,90.879,90.791,18.73673735]
[1772722314331,9.23357731,90.9,90.791,18.73673735]
[1772722314529,28.58697469,90.899,90.791,18.73673735]
[1772722315131,9.9,90.888,90.817,9.908]
[1772722315338,18.68797469,90.879,90.791,18.73673735]
[1772722315529,9.23357731,90.86,90.792,9.911]
[1772722315734,18.68797469,90.859,90.768,18.73673735]
[1772722316239,9.23357731,90.84,90.722,18.73673735]
[1772722316437,27.921552,90.84,90.751,18.73673735]
[1772722316637,27.921552,90.84,90.766,9.914]
[1772722316938,9.23357731,90.86,90.771,18.73673735]
[1772722317136,18.68797469,90.858,90.794,9.91]
[1772722317332,18.68797469,90.858,90.771,18.73673735]
[1772722317839,18.68797469,90.879,90.771,18.73673735]
[1772722318434,18.68797469,90.908,90.791,18.73673735]
[1772722318631,18.68797469,90.908,90.811,18.73673735]
[1772722318836,14.89032942,90.911,90.811,18.73673735]
[1772722318837,18.68797469,90.884,90.811,18.73673735]
[1772722319134,9.23357731,90.89,90.811,18.73673735]
[1772722319531,18.68797469,90.908,90.832,9.906]
[1772722319839,18.68797469,90.889,90.811,18.73673735]
[1772722320139,18.68797469,90.889,90.822,9.907]
[1772722320438,18.68797469,90.91,90.821,18.73673735]
[1772722320635,9.902,90.869,90.799,9.91]
[1772722320835,9.902,90.869,90.73,154.28]
[1772722320836,18.68797469,90.859,90.77,27.97031466]
[1772722321031,18.68797469,90.839,90.75,9.23357731]
[1772722321231,18.68797469,90.819,90.721,18.73673735]
[1772722321428,9.23357731,90.8,90.721,18.73673735]
[1772722321645,9.912,90.779,90.701,433.17320204]
[1772722321835,18.68797469,90.778,90.694,18.73673735]
[1772722322037,9.23357731,90.76,90.694,18.73673735]
[1772722322240,154.146,90.809,90.662,28.66173735]
[1772722322241,18.68797469,90.739,90.662,28.66173735]
[1772722322435,18.68797469,90.739,90.662,18.73673735]
[1772722322636,9.16639783,90.72,90.632,18.73673735]
[1772722322832,18.68797469,90.719,90.632,18.73673735]
[1772722323840,9.16639783,90.7,90.632,18.73673735]
[1772722324040,18.68797469,90.699,90.606,18.73673735]
[1772722324343,9.16639783,90.68,90.606,18.73673735]
[1772722324545,27.85437252,90.68,90.613,9.93]
[1772722324837,18.68797469,90.679,90.581,18.73673735]
[1772722325031,9.16639783,90.66,90.581,18.73673735]
[1772722325336,18.68797469,90.679,90.581,18.73673735]
[1772722325732,9.16639783,90.66,90.586,9.933]
[1772722325936,18.68797469,90.659,90.55,9.16639783]
[1772722326142,18.68797469,90.639,90.551,18.73673735]
[1772722326433,18.68797469,90.63,90.551,18.73673735]
[1772722326632,18.68797469,90.63,90.528,18.73673735]
[1772722326841,18.68797469,90.63,90.553,9.937]
[1772722327140,38.68980221,90.65,90.53,18.73673735]
[1772722327340,18.68797469,90.649,90.55,9.937]
[1772722327638,18.68797469,90.649,90.47,154.724]
[1772722327943,482.78451302,90.734,90.505,18.73673735]
[1772722327944,18.68797469,90.609,90.505,18.73673735]
[1772722328133,18.68797469,90.629,90.505,18.73673735]
[1772722329144,18.68797469,90.609,90.54,9.938]
[1772722329547,18.68797469,90.609,90.52,9.941]
[1772722329839,18.68797469,90.609,90.521,18.73673735]
[1772722330243,18.68797469,90.649,90.533,18.73673735]
[1772722330436,38.68980221,90.63,90.533,18.73673735]
[1772722330636,18.68797469,90.609,90.52,9.941]
[1772722331543,18.68797469,90.609,90.508,18.73673735]
[1772722331544,18.68797469,90.609,90.535,9.939]
[1772722331742,18.68797469,90.609,90.513,18.73673735]
[1772722331939,18.68797469,90.609,90.5,38.68980221]
[1772722332141,18.68797469,90.609,90.486,18.73673735]
[1772722333136,18.68797469,90.609,90.503,9.942]
[1772722333341,18.68797469,90.609,90.49,18.73673735]
[1772722333946,18.68797469,90.609,90.517,9.941]
[1772722334343,18.68797469,90.609,90.49,18.73673735]
[1772722334742,18.68797469,90.589,90.49,18.73673735]
[1772722335548,18.68797469,90.589,90.513,9.941]
[1772722336549,18.68797469,90.589,90.49,18.73673735]
[1772722336848,18.68797469,90.589,90.494,18.73673735]
[1772722337348,18.68797469,90.619,90.494,18.73673735]
[1772722337642,18.68797469,90.619,90.507,154.659]
[1772722337847,18.68797469,90.619,90.508,18.73673735]
[1772722338147,18.68797469,90.619,90.548,9.937]
[1772722340144,18.68797469,90.619,90.531,18.73673735]
[1772722340145,18.68797469,90.619,90.533,9.939]
[1772722340345,18.68797469,90.619,90.531,18.73673735]
[1772722341445,18.68797469,90.619,90.501,19.68696544]
[1772722341845,18.68797469,90.619,90.547,9.938]
[1772722342643,18.68797469,90.619,90.557,9.936]
[1772722342844,18.68797469,90.619,90.523,19.68696544]
[1772722343046,19.73485277,90.596,90.518,9.941]
[1772722343250,19.73485277,90.596,90.483,19.68696544]
[1772722343844,19.73485277,90.592,90.517,9.941]
[1772722344650,19.73485277,90.589,90.505,9.942]
[1772722345043,19.73485277,90.589,90.483,19.68696544]
[1772722345348,19.73485277,90.587,90.515,9.941]
[1772722345851,19.73485277,90.579,90.483,19.68696544]
[1772722346245,19.73485277,90.579,90.507,9.942]
[1772722346447,38.68980221,90.6,90.46,38.68980221]
[1772722346448,19.58303932,90.549,90.46,9.20368395]
[1772722346649,19.58303932,90.549,90.494,9.943]
[1772722346946,19.58303932,90.574,90.463,154.735]
[1772722347149,9.20368395,90.57,90.481,20.057938]
[1772722347344,9.20368395,90.57,90.515,9.941]
[1772722347750,9.20368395,90.57,90.525,9.94]
[1772722347950,19.58303932,90.574,90.525,9.94]
[1772722348248,19.58303932,90.569,90.48,29.26162195]
[1772722348647,19.58303932,90.569,90.481,20.057938]
[1772722348848,19.58303932,90.569,90.493,9.944]
[1772722349148,19.58303932,90.569,90.481,20.057938]
[1772722349349,19.58303932,90.569,90.502,9.943]
[1772722349646,19.58303932,90.569,90.481,20.057938]
[1772722349847,19.58303932,90.569,90.501,9.943]
[1772722350554,9.20368395,90.55,90.481,20.057938]
[1772722350848,19.58303932,90.529,90.454,20.057938]
[1772722351251,19.58303932,90.529,90.474,9.946]
[1772722351451,19.58303932,90.529,90.454,20.057938]
[1772722352049,19.58303932,90.529,90.471,9.946]
[1772722352955,19.58303932,90.527,90.461,9.947]
[1772722353447,19.58303932,90.527,90.469,9.946]
[1772722353754,19.58303932,90.529,90.454,20.057938]
[1772722354046,9.20368395,90.53,90.431,430.86309406]
[1772722354047,19.58303932,90.518,90.447,9.949]
[1772722354241,19.58303932,90.518,90.431,20.057938]
[1772722354647,19.58303932,90.518,90.457,9.947]
[1772722354848,19.58303932,90.518,90.431,20.057938]
[1772722355358,9.20368395,90.53,90.474,9.946]
[1772722355651,19.58303932,90.541,90.452,20.057938]
[1772722355853,19.58303932,90.541,90.483,9.945]
[1772722356052,19.58303932,90.541,90.461,20.057938]
[1772722356249,19.58303932,90.564,90.471,20.057938]
[1772722356754,19.856,90.636,90.491,20.057938]
[1772722356951,9.20368395,90.58,90.491,20.057938]
[1772722358054,19.58303932,90.579,90.491,20.057938]
[1772722358461,29.51503932,90.597,90.512,20.057938]
[1772722358752,19.58303932,90.597,90.512,20.057938]
[1772722358948,19.58303932,90.597,90.531,9.939]
[1772722359152,19.58303932,90.597,90.512,20.057938]
[1772722359650,28.78672327,90.58,90.512,20.057938]
[1772722360249,19.58303932,90.58,90.531,9.939]
[1772722360552,19.58303932,90.599,90.512,20.057938]
[1772722361146,19.58303932,90.588,90.529,9.94]
[1772722361548,19.58303932,90.588,90.49,9.20368395]
[1772722361850,19.58303932,90.579,90.517,9.941]
[1772722362054,19.58303932,90.579,90.491,20.057938]
[1772722362556,19.58303932,90.573,90.507,9.942]
[1772722362752,9.20368395,90.6,90.47,9.20368395]
[1772722362753,19.58303932,90.559,90.47,9.20368395]
[1772722362949,19.58303932,90.559,90.471,20.057938]
[1772722363552,19.58303932,90.559,90.497,9.943]
[1772722364152,19.58303932,90.559,90.487,9.944]
[1772722364457,19.58303932,90.559,90.471,20.057938]
[1772722364857,19.58303932,90.556,90.495,9.943]
[1772722365057,19.58303932,90.556,90.471,20.057938]
[1772722365454,19.58303932,90.589,90.497,20.057938]
[1772722366054,19.58303932,90.568,90.471,20.057938]
[1772722366450,19.58303932,90.568,90.51,9.942]
[1772722366651,19.58303932,90.568,90.499,20.057938]
[1772722368150,19.58303932,90.568,90.5,9.943]
[1772722368553,19.58303932,90.559,90.478,20.057938]
[1772722368759,9.20368395,90.56,90.478,20.057938]
[1772722368760,19.58303932,90.557,90.478,20.057938]
[1772722369962,30.76828396,90.556,90.497,9.943]
[1772722370351,20.83128396,90.556,90.497,9.943]
[1772722370761,8.45981975,90.555,90.478,20.057938]
[1772722370962,8.45981975,90.555,90.4,88.70305487]
[1772722370963,9.72586937,90.529,90.449,21.07811363]
[1772722371258,8.4587917,90.528,90.449,21.07811363]
[1772722371457,15.76919617,90.508,90.427,21.07811363]
[1772722371855,8.45617569,90.507,90.445,9.949]
[1772722372054,15.76919617,90.508,90.445,9.949]
[1772722372263,15.76919617,90.508,90.427,21.07811363]
[1772722372661,15.80663705,90.506,90.406,21.07811363]
[1772722372857,9.20368395,90.53,90.406,21.07811363]
[1772722372858,15.80663705,90.486,90.406,21.07811363]
[1772722373253,15.80663705,90.486,90.429,9.951]
[1772722373563,15.62317674,90.509,90.406,21.07811363]
[1772722373766,15.62317674,90.507,90.406,21.07811363]
[1772722373956,9.20368395,90.51,90.406,21.07811363]
[1772722373957,15.62317674,90.505,90.406,21.07811363]
[1772722374157,15.62250713,90.503,90.432,21.07811363]
[1772722374966,15.3731824,90.501,90.432,21.07811363]
[1772722375764,15.3731824,90.501,90.442,9.949]
[1772722376260,15.3731824,90.501,90.432,21.07811363]
[1772722376261,15.3731824,90.501,90.45,9.948]
[1772722376563,9.20368395,90.53,90.432,21.07811363]
[1772722376564,15.40901945,90.521,90.432,21.07811363]
[1772722376962,15.44524648,90.518,90.432,21.07811363]
[1772722377762,15.44524648,90.518,90.453,9.948]
[1772722378368,15.47836973,90.516,90.444,9.949]
[1772722378668,15.47836973,90.516,90.432,21.07811363]
[1772722379065,15.47836973,90.516,90.46,9.947]
[1772722379464,15.47836973,90.516,90.432,21.07811363]
[1772722379666,9.20368395,90.51,90.432,21.07811363]
[1772722379970,9.20368395,90.51,90.451,9.948]
[1772722380165,15.47836973,90.516,90.432,21.07811363]
[1772722381063,9.20368395,90.53,90.452,21.07811363]
[1772722381267,15.61039578,90.536,90.452,21.07811363]
[1772722381566,15.61039578,90.536,90.483,9.945]
[1772722382370,15.64374165,90.549,90.472,21.07811363]
[1772722382668,15.67752405,90.548,90.431,21.07811363]
[1772722382865,15.67752405,90.529,90.431,21.07811363]
[1772722383065,15.64634455,90.509,90.431,21.07811363]
[1772722383262,15.64634455,90.509,90.45,9.948]
[1772722383572,9.20368395,90.48,90.402,21.07811363]
[1772722383766,9.20368395,90.5,90.402,21.07811363]
[1772722383961,9.20368395,90.5,90.422,21.07811363]
[1772722384371,15.67897327,90.529,90.482,9.945]
[1772722384670,15.67897327,90.529,90.451,21.07811363]
[1772722385170,15.67897327,90.529,90.472,9.946]
[1772722385371,15.54939204,90.55,90.471,21.07811363]
[1772722386173,15.58087863,90.567,90.471,21.07811363]
[1772722386366,15.58087863,90.566,90.471,21.07811363]
[1772722386562,300.91787297,90.576,90.481,9.945]
[1772722386563,15.61289488,90.546,90.481,9.945]
[1772722386762,15.61289488,90.546,90.471,21.07811363]
[1772722387365,15.97014921,90.544,90.45,9.20408343]
[1772722387567,300.91787297,90.576,90.44,21.07811363]
[1772722387568,16.00185465,90.529,90.44,21.07811363]
[1772722387964,16.00121878,90.549,90.462,21.07811363]
[1772722388169,16.00121878,90.548,90.462,21.07811363]
[1772722388976,16.03389311,90.569,90.471,21.07811363]
[1772722389268,16.03389311,90.569,90.43,29.10508343]
[1772722389269,16.03389311,90.529,90.431,21.07811363]
[1772722389472,16.06483211,90.553,90.46,9.20408343]
[1772722389774,16.06483211,90.553,90.461,21.07811363]
[1772722390768,16.06483211,90.553,90.483,21.07811363]
[1772722390972,9.20408343,90.57,90.483,21.07811363]
[1772722391472,20.30360736,90.631,90.48,9.20408343]
[1772722391473,16.25910308,90.599,90.501,21.07811363]
[1772722391666,16.25910308,90.599,90.521,21.07811363]
[1772722392074,16.25910308,90.599,90.552,9.937]
[1772722392271,8.47351151,90.619,90.521,21.07811363]
[1772722392471,8.47351151,90.619,90.495,154.68]
[1772722392472,16.28806669,90.619,90.541,21.07811363]
[1772722393174,13.54113072,90.669,90.541,21.07811363]
[1772722393175,9.20408343,90.64,90.541,21.07811363]
[1772722393477,9.20408343,90.66,90.561,21.07811363]
[1772722394273,16.34315785,90.664,90.561,21.07811363]
[1772722394469,16.37161521,90.649,90.561,21.07811363]
[1772722395073,16.37161521,90.649,90.586,9.933]
[1772722395472,16.37161521,90.649,90.583,21.07811363]
[1772722396575,15.93755793,90.669,90.583,21.07811363]
[1772722397677,15.93755793,90.669,90.595,9.932]
[1772722397875,15.93755793,90.669,90.583,21.07811363]
[1772722398473,16.36980622,90.667,90.583,21.07811363]
[1772722399077,16.34827656,90.722,90.621,20.20007825]
[1772722399276,10.14075093,90.74,90.553,463.742]